[Event "Titled Tuesday Blitz February 15 Early 2022"]
[White "Dauner, Benedikt"]
[Black "Liyanage, Ranindu Dilshan"]
[WhiteFideId "16225899"]
[BlackFideId "9915834"]
[WhiteElo "2230"]
[BlackElo "1858"]
[Result "0-1"]
[Round "10"]
[TimeControl "180+1"]
[Date "2022.02.15"]
[WhiteClock "0:00:03"]
[BlackClock "0:00:14"]

1. d4 {[%clk 0:03:00]}  d5 {[%clk 0:02:59]} 2. c4 {[%clk 0:03:00]}  e6 {[%clk 0:02:57]} 3. Nc3 {[%clk 0:03:00]}  Bb4 {[%clk 0:02:55]} 4. cxd5 {[%clk 0:02:56]}  exd5 {[%clk 0:02:56]} 5. Bf4 {[%clk 0:02:56]}  c5 {[%clk 0:02:49]} 6. e3 {[%clk 0:02:53]}  Nc6 {[%clk 0:02:48]} 7. Nf3 {[%clk 0:02:53]}  Nf6 {[%clk 0:02:47]} 8. Be2 {[%clk 0:02:52]}  Bg4 {[%clk 0:02:43]} 9. O-O {[%clk 0:02:49]}  Bxf3 {[%clk 0:02:43]} 10. Bxf3 {[%clk 0:02:49]}  cxd4 {[%clk 0:02:43]} 11. exd4 {[%clk 0:02:49]}  O-O {[%clk 0:02:43]} 12. Rc1 {[%clk 0:02:45]}  h6 {[%clk 0:02:41]} 13. a3 {[%clk 0:02:44]}  Bd6 {[%clk 0:02:39]} 14. Qd2 {[%clk 0:02:22]}  Na5 {[%clk 0:02:38]} 15. Bxd6 {[%clk 0:01:49]}  Qxd6 {[%clk 0:02:39]} 16. Qd3 {[%clk 0:01:09]}  Rac8 {[%clk 0:02:32]} 17. Rfe1 {[%clk 0:00:54]}  Rfd8 {[%clk 0:02:18]} 18. Re2 {[%clk 0:00:51]}  Nc4 {[%clk 0:01:52]} 19. Rce1 {[%clk 0:00:48]}  Qc6 {[%clk 0:01:20]} 20. Nb1 {[%clk 0:00:39]}  Qb6 {[%clk 0:01:18]} 21. b3 {[%clk 0:00:35]}  Na5 {[%clk 0:01:18]} 22. Nd2 {[%clk 0:00:34]}  Qd6 {[%clk 0:01:16]} 23. b4 {[%clk 0:00:21]}  Nc4 {[%clk 0:01:14]} 24. g3 {[%clk 0:00:14]}  g6 {[%clk 0:01:07]} 25. Kg2 {[%clk 0:00:14]}  h5 {[%clk 0:01:05]} 26. h4 {[%clk 0:00:15]}  Kg7 {[%clk 0:01:05]} 27. Nf1 {[%clk 0:00:13]}  Qa6 {[%clk 0:01:03]} 28. Ra1 {[%clk 0:00:11]}  Re8 {[%clk 0:00:47]} 29. Ne3 {[%clk 0:00:11]}  Nxe3+ {[%clk 0:00:37]} 30. Rxe3 {[%clk 0:00:11]}  Qxd3 {[%clk 0:00:28]} 31. Rxd3 {[%clk 0:00:12]}  Rc4 {[%clk 0:00:29]} 32. Rd2 {[%clk 0:00:11]}  Ne4 {[%clk 0:00:26]} 33. Bxe4 {[%clk 0:00:11]}  Rxe4 {[%clk 0:00:27]} 34. Rad1 {[%clk 0:00:09]}  Rc3 {[%clk 0:00:27]} 35. Rd3 {[%clk 0:00:10]}  Rc4 {[%clk 0:00:27]} 36. Kf3 {[%clk 0:00:09]}  Kf6 {[%clk 0:00:25]} 37. R1d2 {[%clk 0:00:10]}  Ke6 {[%clk 0:00:23]} 38. Kg2 {[%clk 0:00:09]}  Kd6 {[%clk 0:00:21]} 39. f3 {[%clk 0:00:09]}  Re6 {[%clk 0:00:21]} 40. Kf2 {[%clk 0:00:09]}  Kc6 {[%clk 0:00:22]} 41. g4 {[%clk 0:00:04]}  hxg4 {[%clk 0:00:20]} 42. fxg4 {[%clk 0:00:04]}  Re4 {[%clk 0:00:21]} 43. Kf3 {[%clk 0:00:04]}  Rc1 {[%clk 0:00:21]} 44. Rf2 {[%clk 0:00:02]}  Rh1 {[%clk 0:00:20]} 45. Kg3 {[%clk 0:00:02]}  Rg1+ {[%clk 0:00:21]} 46. Kh3 {[%clk 0:00:02]}  Rgxg4 {[%clk 0:00:20]} 47. Rxf7 {[%clk 0:00:01]}  Rxh4+ {[%clk 0:00:21]} 48. Kg3 {[%clk 0:00:02]}  Rxd4 {[%clk 0:00:21]} 49. Rxd4 {[%clk 0:00:01]}  Rxd4 {[%clk 0:00:22]} 50. Rf6+ {[%clk 0:00:01]}  Kb5 {[%clk 0:00:23]} 51. Rxg6 {[%clk 0:00:02]}  Rd3+ {[%clk 0:00:24]} 52. Kf4 {[%clk 0:00:01]}  Rxa3 {[%clk 0:00:24]} 53. Rg7 {[%clk 0:00:02]}  b6 {[%clk 0:00:24]} 54. Ke5 {[%clk 0:00:03]}  Kxb4 {[%clk 0:00:24]} 55. Kxd5 {[%clk 0:00:03]}  a5 {[%clk 0:00:25]} 56. Rg4+ {[%clk 0:00:04]}  Kb5 {[%clk 0:00:25]} 57. Kd6 {[%clk 0:00:04]}  Rd3+ {[%clk 0:00:25]} 58. Kc7 {[%clk 0:00:04]}  a4 {[%clk 0:00:26]} 59. Rg6 {[%clk 0:00:04]}  Rc3+ {[%clk 0:00:25]} 60. Kb7 {[%clk 0:00:04]}  Kc4 {[%clk 0:00:18]} 61. Rc6+ {[%clk 0:00:04]}  Kb3 {[%clk 0:00:19]} 62. Rxb6+ {[%clk 0:00:03]}  Ka2 {[%clk 0:00:19]} 63. Ka6 {[%clk 0:00:03]}  a3 {[%clk 0:00:18]} 64. Ka5 {[%clk 0:00:03]}  Rb3 {[%clk 0:00:18]} 65. Rh6 {[%clk 0:00:02]}  Kb2 {[%clk 0:00:18]} 66. Ka4 {[%clk 0:00:03]}  a2 {[%clk 0:00:15]} 67. Rh2+ {[%clk 0:00:03]}  Kc3 {[%clk 0:00:14]} 68. Rxa2 {[%clk 0:00:02]}  Rb7 {[%clk 0:00:14]} 69. Ra3+ {[%clk 0:00:03]}  Kc4 {[%clk 0:00:14]} 0-1


[Site "https://www.chess.com"]

[Event "Titled Tuesday Blitz February 15 Early 2022"]
[White "Demchenko, Anton"]
[Black "Kezin, Roman"]
[WhiteFideId "4160258"]
[BlackFideId "24124621"]
[WhiteElo "2539"]
[BlackElo "2509"]
[Result "1-0"]
[Round "10"]
[TimeControl "180+1"]
[Date "2022.02.15"]
[WhiteClock "0:00:05"]
[BlackClock "0:00:01"]

1. e4 {[%clk 0:03:00]}  c5 {[%clk 0:03:00]} 2. Nf3 {[%clk 0:03:01]}  e6 {[%clk 0:03:01]} 3. d4 {[%clk 0:02:57]}  cxd4 {[%clk 0:03:02]} 4. Nxd4 {[%clk 0:02:58]}  Nc6 {[%clk 0:03:02]} 5. Nb5 {[%clk 0:02:58]}  d6 {[%clk 0:03:02]} 6. c4 {[%clk 0:02:58]}  a6 {[%clk 0:03:01]} 7. Nd4 {[%clk 0:02:55]}  Nf6 {[%clk 0:03:02]} 8. Nc3 {[%clk 0:02:55]}  Be7 {[%clk 0:03:02]} 9. Be2 {[%clk 0:02:53]}  O-O {[%clk 0:03:02]} 10. Be3 {[%clk 0:02:52]}  Qc7 {[%clk 0:03:02]} 11. O-O {[%clk 0:02:52]}  Ne5 {[%clk 0:03:01]} 12. Rc1 {[%clk 0:02:50]}  b6 {[%clk 0:03:01]} 13. f4 {[%clk 0:02:12]}  Ned7 {[%clk 0:03:00]} 14. Bf3 {[%clk 0:02:13]}  Bb7 {[%clk 0:03:01]} 15. b4 {[%clk 0:02:13]}  Rfe8 {[%clk 0:02:57]} 16. g4 {[%clk 0:01:53]}  e5 {[%clk 0:02:42]} 17. Nd5 {[%clk 0:01:44]}  Qd8 {[%clk 0:02:42]} 18. Nf5 {[%clk 0:01:43]}  Bf8 {[%clk 0:02:21]} 19. g5 {[%clk 0:01:09]}  Nxd5 {[%clk 0:02:21]} 20. exd5 {[%clk 0:01:10]}  exf4 {[%clk 0:02:20]} 21. Bxf4 {[%clk 0:01:10]}  Ne5 {[%clk 0:02:21]} 22. Bg2 {[%clk 0:01:06]}  Rc8 {[%clk 0:02:20]} 23. Qd4 {[%clk 0:00:53]}  g6 {[%clk 0:02:14]} 24. Nh6+ {[%clk 0:00:51]}  Bxh6 {[%clk 0:02:13]} 25. gxh6 {[%clk 0:00:52]}  Qc7 {[%clk 0:01:22]} 26. Kh1 {[%clk 0:00:43]}  Rcd8 {[%clk 0:01:17]} 27. Bg3 {[%clk 0:00:40]}  f5 {[%clk 0:00:45]} 28. Rfe1 {[%clk 0:00:33]}  g5 {[%clk 0:00:25]} 29. Bf2 {[%clk 0:00:32]}  Ng4 {[%clk 0:00:19]} 30. Bg1 {[%clk 0:00:32]}  Nxh6 {[%clk 0:00:17]} 31. Qf6 {[%clk 0:00:26]}  Qg7 {[%clk 0:00:12]} 32. Rxe8+ {[%clk 0:00:26]}  Rxe8 {[%clk 0:00:12]} 33. Qxd6 {[%clk 0:00:26]}  Ng4 {[%clk 0:00:09]} 34. Qxb6 {[%clk 0:00:24]}  Bc8 {[%clk 0:00:05]} 35. d6 {[%clk 0:00:23]}  Be6 {[%clk 0:00:03]} 36. c5 {[%clk 0:00:19]}  f4 {[%clk 0:00:03]} 37. Qc6 {[%clk 0:00:18]}  Rf8 {[%clk 0:00:02]} 38. Qe4 {[%clk 0:00:17]}  Bf5 {[%clk 0:00:02]} 39. Qd5+ {[%clk 0:00:18]}  Kh8 {[%clk 0:00:02]} 40. Bd4 {[%clk 0:00:18]}  Rf6 {[%clk 0:00:01]} 41. Bxf6 {[%clk 0:00:16]}  Qxf6 {[%clk 0:00:02]} 42. d7 {[%clk 0:00:08]}  Bxd7 {[%clk 0:00:02]} 43. Qxd7 {[%clk 0:00:08]}  Ne3 {[%clk 0:00:02]} 44. Qc6 {[%clk 0:00:05]}  Qb2 {[%clk 0:00:01]} 45. Rg1 {[%clk 0:00:05]}  Qf2 {[%clk 0:00:01]} 46. Qf3 {[%clk 0:00:05]} 1-0


[Site "https://www.chess.com"]

[Event "Titled Tuesday Blitz February 15 Early 2022"]
[White "Dilmukhametov, Artur"]
[Black "Winkels, Marcel"]
[WhiteFideId "24179922"]
[BlackFideId "1003887"]
[WhiteElo "2266"]
[BlackElo "1900"]
[Result "0-1"]
[Round "10"]
[TimeControl "180+1"]
[Date "2022.02.15"]
[WhiteClock "0:00:09"]
[BlackClock "0:00:36"]

1. d4 {[%clk 0:03:00]}  Nf6 {[%clk 0:02:57]} 2. c4 {[%clk 0:02:59]}  g6 {[%clk 0:02:56]} 3. Nc3 {[%clk 0:02:58]}  d5 {[%clk 0:02:54]} 4. Nf3 {[%clk 0:02:49]}  Bg7 {[%clk 0:02:53]} 5. Bg5 {[%clk 0:02:42]}  Ne4 {[%clk 0:02:53]} 6. cxd5 {[%clk 0:02:36]}  Nxg5 {[%clk 0:02:52]} 7. Nxg5 {[%clk 0:02:34]}  c6 {[%clk 0:02:49]} 8. dxc6 {[%clk 0:02:26]}  Nxc6 {[%clk 0:02:48]} 9. e3 {[%clk 0:02:25]}  e5 {[%clk 0:02:44]} 10. Nf3 {[%clk 0:02:22]}  exd4 {[%clk 0:02:43]} 11. exd4 {[%clk 0:02:20]}  Nxd4 {[%clk 0:02:42]} 12. Nxd4 {[%clk 0:02:17]}  Qxd4 {[%clk 0:02:41]} 13. Qxd4 {[%clk 0:02:15]}  Bxd4 {[%clk 0:02:39]} 14. Bc4 {[%clk 0:02:08]}  O-O {[%clk 0:02:32]} 15. O-O {[%clk 0:02:06]}  Bf5 {[%clk 0:02:28]} 16. Rad1 {[%clk 0:02:05]}  Rad8 {[%clk 0:02:25]} 17. Ne2 {[%clk 0:02:02]}  Bb6 {[%clk 0:02:21]} 18. g3 {[%clk 0:02:01]}  h5 {[%clk 0:02:19]} 19. h4 {[%clk 0:01:59]}  Rfe8 {[%clk 0:02:12]} 20. Nf4 {[%clk 0:01:57]}  Bg4 {[%clk 0:02:06]} 21. Rxd8 {[%clk 0:01:45]}  Rxd8 {[%clk 0:02:05]} 22. Re1 {[%clk 0:01:40]}  Bf5 {[%clk 0:01:52]} 23. Bd5 {[%clk 0:01:37]}  Bc5 {[%clk 0:01:49]} 24. Bxb7 {[%clk 0:01:33]}  Rb8 {[%clk 0:01:47]} 25. Bf3 {[%clk 0:01:24]}  Rxb2 {[%clk 0:01:46]} 26. Re2 {[%clk 0:01:18]}  Rxe2 {[%clk 0:01:35]} 27. Bxe2 {[%clk 0:01:15]}  Bd6 {[%clk 0:01:33]} 28. Kg2 {[%clk 0:01:13]}  a5 {[%clk 0:01:31]} 29. f3 {[%clk 0:01:09]}  a4 {[%clk 0:01:30]} 30. Bc4 {[%clk 0:01:04]}  a3 {[%clk 0:01:28]} 31. Nd5 {[%clk 0:01:03]}  Be6 {[%clk 0:01:18]} 32. Nf6+ {[%clk 0:01:01]}  Kf8 {[%clk 0:01:12]} 33. Bxe6 {[%clk 0:01:00]}  fxe6 {[%clk 0:01:10]} 34. g4 {[%clk 0:00:57]}  hxg4 {[%clk 0:01:09]} 35. fxg4 {[%clk 0:00:57]}  Kg7 {[%clk 0:01:09]} 36. Ne4 {[%clk 0:00:56]}  Be5 {[%clk 0:01:09]} 37. Kf3 {[%clk 0:00:54]}  Bb2 {[%clk 0:01:07]} 38. h5 {[%clk 0:00:53]}  gxh5 {[%clk 0:01:07]} 39. gxh5 {[%clk 0:00:51]}  Kh6 {[%clk 0:01:07]} 40. Kg4 {[%clk 0:00:50]}  e5 {[%clk 0:01:05]} 41. Kh4 {[%clk 0:00:46]}  Bd4 {[%clk 0:01:02]} 42. Kg4 {[%clk 0:00:45]}  Be3 {[%clk 0:01:01]} 43. Nf6 {[%clk 0:00:44]}  Bg5 {[%clk 0:00:57]} 44. Ne4 {[%clk 0:00:42]}  Bf4 {[%clk 0:00:56]} 45. Nd6 {[%clk 0:00:40]}  Bh2 {[%clk 0:00:54]} 46. Kh3 {[%clk 0:00:36]}  Bf4 {[%clk 0:00:51]} 47. Kg4 {[%clk 0:00:36]}  Bh2 {[%clk 0:00:51]} 48. Kh3 {[%clk 0:00:19]}  Bg1 {[%clk 0:00:48]} 49. Nc4 {[%clk 0:00:18]}  e4 {[%clk 0:00:43]} 50. Nxa3 {[%clk 0:00:19]}  e3 {[%clk 0:00:43]} 51. Kg2 {[%clk 0:00:18]}  e2 {[%clk 0:00:41]} 52. Kxg1 {[%clk 0:00:15]}  e1=Q+ {[%clk 0:00:41]} 53. Kg2 {[%clk 0:00:15]}  Qd2+ {[%clk 0:00:39]} 54. Kf3 {[%clk 0:00:14]}  Qd3+ {[%clk 0:00:38]} 55. Kf2 {[%clk 0:00:13]}  Qxa3 {[%clk 0:00:39]} 56. Ke2 {[%clk 0:00:13]}  Qxa2+ {[%clk 0:00:39]} 57. Ke3 {[%clk 0:00:12]}  Kxh5 {[%clk 0:00:39]} 58. Kf3 {[%clk 0:00:12]}  Kg5 {[%clk 0:00:40]} 59. Ke3 {[%clk 0:00:13]}  Qc4 {[%clk 0:00:40]} 60. Kf3 {[%clk 0:00:12]}  Qd3+ {[%clk 0:00:39]} 61. Kf2 {[%clk 0:00:12]}  Kf4 {[%clk 0:00:39]} 62. Kg2 {[%clk 0:00:12]}  Qf3+ {[%clk 0:00:39]} 63. Kg1 {[%clk 0:00:12]}  Qe2 {[%clk 0:00:36]} 64. Kh1 {[%clk 0:00:10]}  Kg3 {[%clk 0:00:35]} 65. Kg1 {[%clk 0:00:09]}  Qg2# {[%clk 0:00:36]} 0-1


[Site "https://www.chess.com"]

[Event "Titled Tuesday Blitz February 15 Early 2022"]
[White "Dobrov, Vladimir"]
[Black "Seo, Jung Min"]
[WhiteFideId "4136594"]
[BlackFideId "1734687"]
[WhiteElo "2614"]
[BlackElo "2401"]
[Result "1-0"]
[Round "10"]
[TimeControl "180+1"]
[Date "2022.02.15"]
[WhiteClock "0:00:39"]
[BlackClock "0:01:16"]

1. d4 {[%clk 0:03:00]}  Nf6 {[%clk 0:03:00]} 2. c4 {[%clk 0:03:00]}  g6 {[%clk 0:03:00]} 3. Nc3 {[%clk 0:03:00]}  d5 {[%clk 0:03:00]} 4. cxd5 {[%clk 0:03:00]}  Nxd5 {[%clk 0:03:00]} 5. e4 {[%clk 0:03:01]}  Nxc3 {[%clk 0:03:00]} 6. bxc3 {[%clk 0:03:02]}  Bg7 {[%clk 0:03:01]} 7. Nf3 {[%clk 0:03:02]}  c5 {[%clk 0:03:01]} 8. Rb1 {[%clk 0:03:03]}  cxd4 {[%clk 0:02:56]} 9. cxd4 {[%clk 0:03:02]}  Qa5+ {[%clk 0:02:56]} 10. Bd2 {[%clk 0:03:00]}  Qxa2 {[%clk 0:02:56]} 11. Bb5+ {[%clk 0:02:58]}  Nd7 {[%clk 0:02:53]} 12. O-O {[%clk 0:02:42]}  O-O {[%clk 0:02:53]} 13. Re1 {[%clk 0:02:29]}  Nf6 {[%clk 0:02:42]} 14. d5 {[%clk 0:02:23]}  Bg4 {[%clk 0:02:34]} 15. Bb4 {[%clk 0:02:08]}  Bxf3 {[%clk 0:02:22]} 16. gxf3 {[%clk 0:02:04]}  a6 {[%clk 0:02:14]} 17. Re2 {[%clk 0:02:00]}  axb5 {[%clk 0:02:13]} 18. Rxa2 {[%clk 0:02:00]}  Rxa2 {[%clk 0:02:13]} 19. Bxe7 {[%clk 0:01:56]}  Re8 {[%clk 0:02:12]} 20. Qb3 {[%clk 0:01:51]}  Raa8 {[%clk 0:02:08]} 21. Bc5 {[%clk 0:01:44]}  Nd7 {[%clk 0:02:04]} 22. Be3 {[%clk 0:01:44]}  Ne5 {[%clk 0:02:04]} 23. Qxb5 {[%clk 0:01:24]}  Nxf3+ {[%clk 0:02:04]} 24. Kg2 {[%clk 0:01:24]}  Nh4+ {[%clk 0:02:02]} 25. Kh3 {[%clk 0:01:17]}  Rxe4 {[%clk 0:02:02]} 26. d6 {[%clk 0:01:11]}  Bf6 {[%clk 0:01:30]} 27. Qxb7 {[%clk 0:01:07]}  Ree8 {[%clk 0:01:30]} 28. d7 {[%clk 0:01:01]}  Rf8 {[%clk 0:01:28]} 29. Bc5 {[%clk 0:00:55]}  Rfd8 {[%clk 0:01:28]} 30. Rb6 {[%clk 0:00:41]}  Bg5 {[%clk 0:01:16]} 31. f4 {[%clk 0:00:39]} 1-0


[Site "https://www.chess.com"]

[Event "Titled Tuesday Blitz February 15 Early 2022"]
[White "Dubov, Daniil"]
[Black "Matlakov, Maxim"]
[WhiteFideId "24126055"]
[BlackFideId "4168003"]
[WhiteElo "2791"]
[BlackElo "2661"]
[Result "1-0"]
[Round "10"]
[TimeControl "180+1"]
[Date "2022.02.15"]
[WhiteClock "0:00:05"]
[BlackClock "0:00:01"]

1. e4 {[%clk 0:03:00]}  c5 {[%clk 0:02:59]} 2. Nf3 {[%clk 0:03:00]}  e6 {[%clk 0:02:59]} 3. d4 {[%clk 0:03:00]}  cxd4 {[%clk 0:03:00]} 4. Nxd4 {[%clk 0:03:01]}  Nc6 {[%clk 0:02:59]} 5. Nc3 {[%clk 0:03:01]}  Qc7 {[%clk 0:02:59]} 6. Be3 {[%clk 0:02:57]}  a6 {[%clk 0:02:59]} 7. Bd3 {[%clk 0:02:56]}  Nf6 {[%clk 0:02:57]} 8. O-O {[%clk 0:02:55]}  h5 {[%clk 0:02:57]} 9. h3 {[%clk 0:02:50]}  b5 {[%clk 0:02:57]} 10. Nxc6 {[%clk 0:02:41]}  Qxc6 {[%clk 0:02:57]} 11. Re1 {[%clk 0:02:37]}  Bb7 {[%clk 0:02:57]} 12. a3 {[%clk 0:02:34]}  Rc8 {[%clk 0:02:46]} 13. Be2 {[%clk 0:02:31]}  Bc5 {[%clk 0:02:41]} 14. Bf3 {[%clk 0:02:30]}  Bxe3 {[%clk 0:02:31]} 15. Rxe3 {[%clk 0:02:30]}  e5 {[%clk 0:02:29]} 16. Qd2 {[%clk 0:02:28]}  d6 {[%clk 0:02:25]} 17. Rd1 {[%clk 0:02:28]}  Ke7 {[%clk 0:02:21]} 18. Rd3 {[%clk 0:02:28]}  Rhd8 {[%clk 0:02:07]} 19. Qg5 {[%clk 0:02:27]}  Kf8 {[%clk 0:02:07]} 20. Bxh5 {[%clk 0:02:25]}  a5 {[%clk 0:01:36]} 21. Rg3 {[%clk 0:02:13]}  Ne8 {[%clk 0:01:18]} 22. Nd5 {[%clk 0:02:12]}  Qd7 {[%clk 0:01:17]} 23. Bxf7 {[%clk 0:02:08]}  Qxf7 {[%clk 0:01:15]} 24. Rf3 {[%clk 0:02:08]}  Bxd5 {[%clk 0:01:15]} 25. Rxf7+ {[%clk 0:02:04]}  Bxf7 {[%clk 0:01:16]} 26. c3 {[%clk 0:02:04]}  Nf6 {[%clk 0:01:16]} 27. f3 {[%clk 0:02:03]}  b4 {[%clk 0:01:07]} 28. cxb4 {[%clk 0:02:01]}  axb4 {[%clk 0:01:08]} 29. axb4 {[%clk 0:02:02]}  Rc4 {[%clk 0:01:08]} 30. Qd2 {[%clk 0:01:42]}  Ne8 {[%clk 0:01:08]} 31. Rc1 {[%clk 0:01:41]}  Rd4 {[%clk 0:01:08]} 32. Qg5 {[%clk 0:01:32]}  Rb8 {[%clk 0:01:05]} 33. Ra1 {[%clk 0:01:31]}  Rdxb4 {[%clk 0:01:03]} 34. Ra7 {[%clk 0:01:31]}  R4b7 {[%clk 0:01:02]} 35. Rxb7 {[%clk 0:01:31]}  Rxb7 {[%clk 0:01:03]} 36. Qd2 {[%clk 0:01:31]}  Rb3 {[%clk 0:01:01]} 37. h4 {[%clk 0:01:29]}  g6 {[%clk 0:01:01]} 38. Kh2 {[%clk 0:01:27]}  Ke7 {[%clk 0:01:01]} 39. Kg3 {[%clk 0:01:25]}  Nf6 {[%clk 0:01:01]} 40. Kh2 {[%clk 0:01:19]}  Nh5 {[%clk 0:00:55]} 41. Qc2 {[%clk 0:01:16]}  Kd7 {[%clk 0:00:53]} 42. Qf2 {[%clk 0:01:14]}  Nf4 {[%clk 0:00:47]} 43. Kg3 {[%clk 0:01:04]}  Ke8 {[%clk 0:00:42]} 44. Kg4 {[%clk 0:01:02]}  Ke7 {[%clk 0:00:41]} 45. Kg5 {[%clk 0:00:47]}  Rb7 {[%clk 0:00:40]} 46. Qd2 {[%clk 0:00:39]}  Ne6+ {[%clk 0:00:39]} 47. Kg4 {[%clk 0:00:38]}  Nd4 {[%clk 0:00:37]} 48. b4 {[%clk 0:00:36]}  Ne6 {[%clk 0:00:36]} 49. Qc3 {[%clk 0:00:28]}  Nd4 {[%clk 0:00:33]} 50. Kg5 {[%clk 0:00:23]}  Ne6+ {[%clk 0:00:32]} 51. Kg4 {[%clk 0:00:23]}  Kf6 {[%clk 0:00:33]} 52. Qc6 {[%clk 0:00:16]}  Rxb4 {[%clk 0:00:33]} 53. Qxd6 {[%clk 0:00:16]}  Rb2 {[%clk 0:00:33]} 54. g3 {[%clk 0:00:15]}  Rg2 {[%clk 0:00:28]} 55. Kh3 {[%clk 0:00:13]}  Rg1 {[%clk 0:00:27]} 56. f4 {[%clk 0:00:11]}  exf4 {[%clk 0:00:25]} 57. gxf4 {[%clk 0:00:11]}  Rh1+ {[%clk 0:00:23]} 58. Kg3 {[%clk 0:00:12]}  Rg1+ {[%clk 0:00:24]} 59. Kh3 {[%clk 0:00:04]}  Rf1 {[%clk 0:00:19]} 60. Qe5+ {[%clk 0:00:03]}  Ke7 {[%clk 0:00:20]} 61. f5 {[%clk 0:00:03]}  gxf5 {[%clk 0:00:13]} 62. exf5 {[%clk 0:00:04]}  Rf4 {[%clk 0:00:13]} 63. fxe6 {[%clk 0:00:03]}  Bxe6+ {[%clk 0:00:14]} 64. Kg3 {[%clk 0:00:03]}  Rg4+ {[%clk 0:00:15]} 65. Kf3 {[%clk 0:00:04]}  Kf7 {[%clk 0:00:14]} 66. h5 {[%clk 0:00:03]}  Rc4 {[%clk 0:00:13]} 67. Ke3 {[%clk 0:00:03]}  Rh4 {[%clk 0:00:12]} 68. Qg5 {[%clk 0:00:03]}  Rh3+ {[%clk 0:00:12]} 69. Kf4 {[%clk 0:00:02]}  Kf8 {[%clk 0:00:05]} 70. Qf6+ {[%clk 0:00:02]}  Bf7 {[%clk 0:00:05]} 71. Qh8+ {[%clk 0:00:02]}  Ke7 {[%clk 0:00:05]} 72. h6 {[%clk 0:00:02]}  Rh4+ {[%clk 0:00:05]} 73. Kg5 {[%clk 0:00:03]}  Rh5+ {[%clk 0:00:05]} 74. Kg4 {[%clk 0:00:03]}  Rh1 {[%clk 0:00:05]} 75. Qe5+ {[%clk 0:00:03]}  Kf8 {[%clk 0:00:05]} 76. Qg7+ {[%clk 0:00:03]}  Ke7 {[%clk 0:00:06]} 77. Kf4 {[%clk 0:00:04]}  Rf1+ {[%clk 0:00:04]} 78. Ke3 {[%clk 0:00:04]}  Re1+ {[%clk 0:00:03]} 79. Kd2 {[%clk 0:00:04]}  Rh1 {[%clk 0:00:03]} 80. h7 {[%clk 0:00:05]}  Rh2+ {[%clk 0:00:03]} 81. Ke3 {[%clk 0:00:04]}  Rh3+ {[%clk 0:00:03]} 82. Kf2 {[%clk 0:00:04]}  Rf3+ {[%clk 0:00:01]} 83. Kxf3 {[%clk 0:00:05]} 1-0


[Site "https://www.chess.com"]

[Event "Titled Tuesday Blitz February 15 Early 2022"]
[White "Fernandez, Michael"]
[Black "Dronavalli, Harika"]
[WhiteFideId "5803560"]
[BlackFideId "5015197"]
[WhiteElo "2110"]
[BlackElo "2382"]
[Result "1-0"]
[Round "10"]
[TimeControl "180+1"]
[Date "2022.02.15"]
[WhiteClock "0:00:26"]
[BlackClock "0:00:54"]

1. c4 {[%clk 0:03:00]}  b6 {[%clk 0:02:56]} 2. Nc3 {[%clk 0:03:00]}  Bb7 {[%clk 0:02:56]} 3. e4 {[%clk 0:03:00]}  e6 {[%clk 0:02:56]} 4. g3 {[%clk 0:02:59]}  f5 {[%clk 0:02:43]} 5. d3 {[%clk 0:02:51]}  Bb4 {[%clk 0:02:39]} 6. Bd2 {[%clk 0:02:44]}  Nf6 {[%clk 0:02:33]} 7. Bg2 {[%clk 0:02:41]}  O-O {[%clk 0:02:13]} 8. Qe2 {[%clk 0:02:39]}  fxe4 {[%clk 0:01:59]} 9. Nxe4 {[%clk 0:02:29]}  Bxd2+ {[%clk 0:01:57]} 10. Qxd2 {[%clk 0:02:29]}  d5 {[%clk 0:01:50]} 11. Nxf6+ {[%clk 0:02:23]}  Qxf6 {[%clk 0:01:49]} 12. Nh3 {[%clk 0:02:16]}  Nd7 {[%clk 0:01:39]} 13. O-O {[%clk 0:02:12]}  Ne5 {[%clk 0:01:34]} 14. Rae1 {[%clk 0:01:49]}  Rae8 {[%clk 0:01:25]} 15. f4 {[%clk 0:01:30]}  Nf7 {[%clk 0:01:23]} 16. d4 {[%clk 0:01:25]}  Nd6 {[%clk 0:01:19]} 17. c5 {[%clk 0:01:09]}  bxc5 {[%clk 0:01:18]} 18. dxc5 {[%clk 0:01:10]}  Nc4 {[%clk 0:01:15]} 19. Qc2 {[%clk 0:00:49]}  Ba6 {[%clk 0:01:09]} 20. Rf2 {[%clk 0:00:31]}  Qd4 {[%clk 0:01:07]} 21. b4 {[%clk 0:00:29]}  Rb8 {[%clk 0:00:56]} 22. Ng5 {[%clk 0:00:27]}  Bc8 {[%clk 0:00:54]} 23. Qxh7# {[%clk 0:00:26]} 1-0


[Site "https://www.chess.com"]

[Event "Titled Tuesday Blitz February 15 Early 2022"]
[White "Gabrielian, Artur"]
[Black "Rodchenkov, Sergey D."]
[WhiteFideId "4131002"]
[BlackFideId "4168712"]
[WhiteElo "2440"]
[BlackElo "2306"]
[Result "1-0"]
[Round "10"]
[TimeControl "180+1"]
[Date "2022.02.15"]
[WhiteClock "0:01:19"]
[BlackClock "0:00:23"]

1. d4 {[%clk 0:03:00]}  d5 {[%clk 0:03:00]} 2. c4 {[%clk 0:03:00]}  dxc4 {[%clk 0:03:01]} 3. Nf3 {[%clk 0:02:58]}  Nf6 {[%clk 0:03:01]} 4. e3 {[%clk 0:02:58]}  e6 {[%clk 0:03:01]} 5. Bxc4 {[%clk 0:02:58]}  c5 {[%clk 0:03:02]} 6. O-O {[%clk 0:02:35]}  a6 {[%clk 0:03:02]} 7. dxc5 {[%clk 0:02:33]}  Bxc5 {[%clk 0:03:03]} 8. Qxd8+ {[%clk 0:02:32]}  Kxd8 {[%clk 0:03:04]} 9. b3 {[%clk 0:02:32]}  Ke7 {[%clk 0:02:38]} 10. Bb2 {[%clk 0:02:29]}  Nc6 {[%clk 0:02:26]} 11. Nc3 {[%clk 0:02:26]}  Bd7 {[%clk 0:02:22]} 12. Rac1 {[%clk 0:02:23]}  Rac8 {[%clk 0:02:20]} 13. Na4 {[%clk 0:02:23]}  Ba7 {[%clk 0:02:17]} 14. Ba3+ {[%clk 0:02:21]}  Ke8 {[%clk 0:02:15]} 15. Nc5 {[%clk 0:02:20]}  Bxc5 {[%clk 0:02:04]} 16. Bxc5 {[%clk 0:02:20]}  Ne4 {[%clk 0:02:01]} 17. Ba3 {[%clk 0:02:08]}  Ne7 {[%clk 0:01:54]} 18. Ne5 {[%clk 0:01:52]}  Bc6 {[%clk 0:00:32]} 19. Rfd1 {[%clk 0:01:33]}  Bd5 {[%clk 0:00:31]} 20. Bxd5 {[%clk 0:01:26]}  Rxc1 {[%clk 0:00:28]} 21. Rxc1 {[%clk 0:01:23]}  exd5 {[%clk 0:00:25]} 22. Rc7 {[%clk 0:01:21]}  Ng6 {[%clk 0:00:23]} 23. Nxg6 {[%clk 0:01:19]} 1-0


[Site "https://www.chess.com"]